[Event "CCT Chessable Masters D-III 2024"]
[Site "Online"]
[Date "2024.02.05"]
[Round "58"]
[White "Bortnyk, Oleksandr"]
[Black "Grischuk, Alexander"]
[Result "1/2-1/2"]
[ECO "B30"]
[WhiteElo "2655"]
[BlackElo "2732"]
[Annotator "TA"]
[PlyCount "91"]
[EventDate "2024.01.12"]
[EventType "k.o."]
[EventCountry "NET"]
[SourceTitle "playchess.com"]
[Source "ChessBase"]
[SourceQuality "1"]
[TimeControl "600+2"]

{[%evp 9,90,-33,-32,-36,-24,-36,-27,-25,-2,-22,-24,-31,-21,-18,-14,-18,-27,-28,-16,-21,-21,-31,-41,-49,-33,-43,-44,-68,-57,-89,-89,-80,-96,-83,-79,-72,-69,-92,-76,-100,-52,-80,-83,-150,-54,-53,-53,-72,0,0,0,0,0,0,0,-29967,-29971,-5094,0,0,0,-29970,-29965,-5912,0,0,0,0,0,0,0,0,0,0,0,0,0,0,0,0,0,0,0]} 1. e4 {[%emt 0:00:10]} c5 {[%emt 0:02:05]} 2. Nf3 {[%emt 0:00:07]} Nc6 {[%emt 0:00:03]} 3. Bc4 {[%emt 0:00:03]} e6 {[%emt 0:00:20]} 4. e5 {[%emt 0:00:15]} d6 {[%emt 0:00:14]} 5. exd6 {[%emt 0:00:04]} Bxd6 {[%emt 0:00:03]} 6. O-O {[%emt 0:00:13]} Nge7 {[%emt 0:00:06]} 7. Nc3 {[%emt 0:00:05]} Nf5 {[%emt 0:00:05]} 8. Ne4 {[%emt 0:00:08] Black has an edge.} Be7 {[%emt 0:00:04]} 9. d3 {[%emt 0:00:25]} O-O {[%emt 0:00:03]} 10. a3 {[%emt 0:00:10]} b6 {[%emt 0:00:04]} 11. Bf4 {[%emt 0:00:08]} Bb7 {[%emt 0:00:04]} 12. Re1 {[%emt 0:00:06]} Na5 {[%emt 0:00:35]} 13. Ba2 {[%emt 0:00:06]} Bd5 {[%emt 0:00:03]} 14. Bxd5 {[%emt 0:00:46]} Qxd5 {[%emt 0:00:02]} 15. Be5 {[%emt 0:00:43]} Nc6 {[%emt 0:00:08]} 16. Bc3 {[%emt 0:00:07]} Rfd8 {[%emt 0:00:08]} 17. Qe2 {[%emt 0:00:14]} Rac8 {[%emt 0:00:06]} 18. Rad1 {[%emt 0:00:10]} Ncd4 {[%emt 0:00:11]} 19. Bxd4 {[%emt 0:00:08]} Nxd4 {[%emt 0:00:06]} 20. Nxd4 {[%emt 0:00:04]} cxd4 {[%emt 0:00:02]} 21. f4 {[%emt 0:00:45]} Rc7 {[%emt 0:00:12]} 22. Rd2 {[%emt 0:00:04]} Rdc8 {[%emt 0:00:06]} 23. Qf2 {[%emt 0:00:09]} h6 {[%emt 0:00:47]} 24. Rde2 {[%emt 0:00:13]} f5 {[%emt 0:00:05]} (24... Qb5 $17 25. b4 a5) 25. Nd2 {[%emt 0:00:34]} Rxc2 {[%emt 0:00:04]} 26. Rxe6 {[%emt 0:00:06] [#]} (26. Nf3 $142 Rc1 27. Re5) 26... Bh4 {[%emt 0:00:31]} 27. Qxh4 {[%emt 0:00:54]} Rxd2 {[%emt 0:00:04]} 28. Rg6 {[%emt 0:00:06][%cal Og6g7]} Rcc2 $40 {[%emt 0:01:48][%mdl 128] White needs to defend precisely.} (28... Rxb2 $17 29. Kh1 Qf7 (29... Kh7 30. Rxh6+ gxh6 31. Re7+ Kg6 32. Qg3+ Kh5 33. Qh3+ Kg6 34. Qg3+ Kh5 35. Qh3+ Kg6 36. Qg3+ $11) 30. Qxh6 Re2) 29. Re8+ $1 $11 {[%emt 0:00:57]} Kf7 {[%emt 0:00:48][%cal Rd2g2]} 30. Rxg7+ {[%emt 0:00:16]} Kxg7 {[%emt 0:00:02][%csl Gc2,Gd2][%cal Rd5g2]} 31. Qg3+ {[%emt 0:01:17]} Kf6 {[%emt 0:00:07]} ({And not} 31... Kh7 32. Re7+) 32. Rf8+ $2 {[%emt 0:00:03][%mdl 8192] [#]} (32. Qh4+ $11 Kf7 (32... Kg6 33. Qg3+ Kf6 34. Qh4+ Kf7 35. Re7+ Kg6 36. Qg3+ Kh5 37. Qh3+ Kg6 38. Qg3+ Kh5 39. Qh3+ Kg6 40. Qg3+ $11) 33. Re7+ Kg6 34. Qg3+ Kh5 35. Qh3+ Kg6 36. Qg3+ Kh5 37. Qh3+ Kg6 38. Qg3+) 32... Qf7 $3 {[%emt 0:00:04][%mdl 512]} 33. Qh4+ {[%emt 0:00:29]} (33. Rxf7+ Kxf7) 33... Kg6 $2 {[%emt 0:00:14]} (33... Kg7 $19 34. Rxf7+ Kxf7 35. Qh5+ Kg7) 34. Qg3+ {[%emt 0:00:04]} Kf6 {[%emt 0:00:03]} 35. Rxf7+ $4 {[%emt 0:00:27][%mdl 8192]} (35. Qh4+ $11 Kg7 36. Rxf7+ Kxf7 37. h3 Rxg2+ (37... Rxb2 $2 38. Qd8 $19) 38. Kf1) 35... Kxf7 {[%emt 0:00:02]} 36. h3 {[%emt 0:00:08]} Rxg2+ $2 {[%emt 0:00:05]} ({Black should try} 36... Rxb2 $19 {( -> ...Rxg2+)} 37. Kh1 Rxg2) 37. Qxg2 {[%emt 0:00:03] The position is equal.} Rxg2+ {[%emt 0:00:03]} 38. Kxg2 $19 {[%emt 0:00:02][%mdl 4096] Endgame. KP-KP} Kg6 {[%emt 0:00:08][%cal Bf7g6,Bg6h5,Bh5h4][%mdl 32]} 39. a4 {[%emt 0:00:05]} a6 {[%emt 0:00:11]} 40. Kg3 {[%emt 0:00:08]} Kh5 {[%emt 0:00:05]} 41. Kf3 {[%emt 0:00:03]} Kh4 {[%emt 0:00:04]} 42. Kg2 {[%emt 0:00:03]} b5 {[%emt 0:00:06]} 43. a5 {[%emt 0:00:04]} b4 {[%emt 0:00:03]} 44. Kh2 {[%emt 0:00:03]} b3 {[%emt 0:00:05]} 45. Kg2 {[%emt 0:00:02]} h5 {[%emt 0:00:10]} 46. Kh2 {[%emt 0:00:02] Weighted Error Value: White=0.33/Black=0.55.  Loses game:     	White=2     	---        Mistake:       	White=1     	Black=3      Inaccurate:     	White=2     	---        OK:         	White=13    	Black=12     Best:        	White=2     	Black=2      Strong:       	White=1     	---        Brilliant:      	---       	Black=1} 1/2-1/2